[Event "XII Figueira da Foz Open 2018"]
[Site "Figueira da Foz"]
[Date "2018.11.03"]
[Round "8"]
[White "Soares, Sara Joana De Moura"]
[Black "Dias, Jose Oliveira Gaspa"]
[Result "1-0"]
[ECO "B12"]
[WhiteElo "1481"]
[BlackElo "1605"]
[Annotator "NA RC"]
[PlyCount "73"]
[EventDate "2018.10.30"]
[EventType "swiss"]
[EventCountry "POR"]
[SourceTitle "playchess.com"]
[Source "ChessBase"]
[SourceQuality "1"]
[TimeControl "40/5400+30:1800+30"]

1. e4 {[%emt 0:00:00]} c6 {[%emt 0:01:56]} 2. d4 {[%emt 0:00:00]} d5 {[%emt 0:00:24]} 3. e5 {[%emt 0:00:00]} Bf5 {[%emt 0:02:13]} 4. h4 {[%emt 0:01:01]} h6 {[%emt 0:01:13]} 5. g4 {[%emt 0:00:38]} Bh7 {[%emt 0:01:47]} 6. e6 {[%emt 0:02:40]} fxe6 {[%emt 0:01:06]} 7. Nf3 {[%emt 0:01:46]} Qd6 {[%emt 0:02:21]} 8. Bd3 {[%emt 0:12:30]} Bxd3 {[%emt 0:14:07]} 9. Qxd3 {[%emt 0:00:02]} Nd7 {[%emt 0:00:12]} 10. Qg6+ {[%emt 0:10:54]} Kd8 {[%emt 0:00:05]} 11. Qf7 {[%emt 0:01:26]} Ngf6 {[%emt 0:01:14]} 12. g5 {[%emt 0:04:01]} hxg5 {[%emt 0:03:28]} 13. Nxg5 {[%emt 0:01:05]} Kc7 {[%emt 0:04:09]} 14. Nxe6+ Kb6 {[%emt 0:00:12]} 15. c3 {[%emt 0:04:57]} Rh5 {[%emt 0:06:42]} 16. Bf4 {[%emt 0:02:03]} Re5+ {[%emt 0:01:40]} 17. Bxe5 {[%emt 0:02:00]} Nxe5 {[%emt 0:00:04]} 18. dxe5 {[%emt 0:01:55]} Qxe5+ {[%emt 0:00:03]} 19. Kd1 {[%emt 0:05:05]} Nd7 {[%emt 0:06:13]} 20. Nd4 {[%emt 0:05:34]} Qe4 {[%emt 0:00:58]} 21. Qf3 {[%emt 0:01:45]} Qh7 {[%emt 0:04:18]} 22. Qf5 {[%emt 0:00:01]} Qxf5 {[%emt 0:02:20]} 23. Nxf5 {[%emt 0:02:29]} g6 {[%emt 0:00:07]} 24. Nd4 {[%emt 0:01:03]} e5 {[%emt 0:00:31]} 25. Ne6 {[%emt 0:02:32]} Bh6 {[%emt 0:02:06]} 26. a4 {[%emt 0:00:20]} a6 {[%emt 0:00:48]} 27. Nd2 {[%emt 0:03:48]} e4 {[%emt 0:00:32]} 28. a5+ {[%emt 0:02:01]} Ka7 {[%emt 0:00:05]} 29. Kc2 {[%emt 0:01:45]} Re8 {[%emt 0:00:06]} 30. Ng5 {[%emt 0:00:53]} Rf8 {[%emt 0:02:30]} 31. Raf1 {[%emt 0:05:01]} Ne5 {[%emt 0:00:17]} 32. Nb3 {[%emt 0:02:51]} Nd3 {[%emt 0:00:14]} 33. f3 {[%emt 0:02:57]} Bxg5 {[%emt 0:00:12]} 34. hxg5 {[%emt 0:00:14]} Rf5 {[%emt 0:00:40]} 35. fxe4 {[%emt 0:00:36]} dxe4 {[%emt 0:00:30]} 36. Rxf5 {[%emt 0:00:28]} gxf5 {[%emt 0:00:02]} 37. g6 {[%emt 0:00:32]} 1-0

[Event "XII Figueira da Foz Open 2018"]
[Site "Figueira da Foz"]
[Date "2018.11.03"]
[Round "8"]
[White "Moes Joaquim, Carlos"]
[Black "Ferreira, Cristina"]
[Result "1-0"]
[ECO "A51"]
[WhiteElo "1415"]
[BlackElo "1069"]
[Annotator "NA RC"]
[PlyCount "66"]
[EventDate "2018.10.30"]
[EventType "swiss"]
[EventCountry "POR"]
[SourceTitle "playchess.com"]
[Source "ChessBase"]
[SourceQuality "1"]
[TimeControl "40/5400+30:1800+30"]

1. d4 {[%emt 0:02:35]} Nf6 {[%emt 0:00:13]} 2. c4 {[%emt 0:00:12]} e5 {[%emt 0:00:35]} 3. d5 {[%emt 0:01:26]} Bb4+ {[%emt 0:02:06]} 4. Bd2 {[%emt 0:00:37]} Bc5 {[%emt 0:03:17]} 5. e3 {[%emt 0:02:15]} d6 {[%emt 0:03:21]} 6. Nc3 {[%emt 0:00:32]} O-O {[%emt 0:04:48]} 7. Bd3 {[%emt 0:02:34]} Bg4 {[%emt 0:10:46]} 8. Nge2 {[%emt 0:00:25]} Qd7 {[%emt 0:04:08]} 9. O-O {[%emt 0:03:03]} Na6 {[%emt 0:03:16]} 10. Rc1 {[%emt 0:01:25]} Rfe8 {[%emt 0:05:18]} 11. Bc2 {[%emt 0:07:10]} Re7 {[%emt 0:13:16]} 12. Kh1 {[%emt 0:00:46]} Rae8 {[%emt 0:03:16]} 13. Ba4 {[%emt 0:00:57]} c6 {[%emt 0:01:43]} 14. a3 {[%emt 0:00:47]} Nc7 {[%emt 0:09:45]} 15. f3 {[%emt 0:10:27]} Bh5 {[%emt 0:00:30]} 16. b4 {[%emt 0:01:12]} Bb6 {[%emt 0:00:23]} 17. Ng3 {[%emt 0:08:37]} Bg6 {[%emt 0:00:50]} 18. Qe2 {[%emt 0:01:22]} Nh5 {[%emt 0:00:35]} 19. Nxh5 {[%emt 0:05:01]} Bxh5 {[%emt 0:00:16]} 20. Rfd1 {[%emt 0:03:02]} Qf5 {[%emt 0:00:40]} 21. dxc6 {[%emt 0:02:44]} Rb8 {[%emt 0:01:07]} 22. cxb7 {[%emt 0:00:35]} Rxb7 {[%emt 0:00:45]} 23. g4 {[%emt 0:01:01]} Qg5 {[%emt 0:02:40]} 24. Ne4 {[%emt 0:04:18]} Qh6 {[%emt 0:01:31]} 25. gxh5 {[%emt 0:01:29]} Re6 {[%emt 0:02:08]} 26. Ng3 {[%emt 0:01:12]} Rb8 {[%emt 0:02:23]} 27. Rg1 {[%emt 0:08:24]} Rd8 {[%emt 0:00:48]} 28. c5 {[%emt 0:01:26]} d5 {[%emt 0:09:15]} 29. cxb6 {[%emt 0:00:30]} Na6 {[%emt 0:02:04]} 30. b7 {[%emt 0:00:34]} Ree8 {[%emt 0:02:43]} 31. Bxe8 {[%emt 0:02:12]} Qe6 {[%emt 0:01:49]} 32. Bb5 {[%emt 0:01:10]} Nb8 {[%emt 0:04:26]} 33. Qg2 {[%emt 0:00:17]} Qe8 1-0

[Event "XII Figueira da Foz Open 2018"]
[Site "Figueira da Foz"]
[Date "2018.11.03"]
[Round "8"]
[White "Goncalves, Lucas Jordao"]
[Black "Morais, Mario Martins Freit"]
[Result "1-0"]
[ECO "B06"]
[WhiteElo "1401"]
[BlackElo "1766"]
[Annotator "NA RC"]
[PlyCount "38"]
[EventDate "2018.10.30"]
[EventType "swiss"]
[EventCountry "POR"]
[SourceTitle "playchess.com"]
[Source "ChessBase"]
[SourceQuality "1"]
[TimeControl "40/5400+30:1800+30"]

1. e4 g6 2. d4 Bg7 3. Nf3 c5 4. Be3 Nc6 5. Nc3 cxd4 6. Nxd4 Qa5 7. Qd2 Nf6 8. f3 d6 9. O-O-O Bd7 10. h4 Nxd4 11. Bxd4 h5 12. Kb1 Rc8 13. g3 Be6 14. Bb5+ Kf8 15. Be2 Bh6 16. f4 Nxe4 17. Qd3 Rxc3 18. Qxe4 Bf5 19. Bxc3 Qxa2+ 1-0

[Event "XII Figueira da Foz Open 2018"]
[Site "Figueira da Foz"]
[Date "2018.11.03"]
[Round "8"]
[White "Fonseca, Rene Gil Bakker"]
[Black "Dong, Fabio"]
[Result "0-1"]
[ECO "B46"]
[WhiteElo "1378"]
[BlackElo "1273"]
[Annotator "NA RC"]
[PlyCount "108"]
[EventDate "2018.10.30"]
[EventType "swiss"]
[EventCountry "POR"]
[SourceTitle "playchess.com"]
[Source "ChessBase"]
[SourceQuality "1"]
[TimeControl "40/5400+30:1800+30"]

1. e4 {[%emt 0:00:00]} c5 {[%emt 0:00:00]} 2. Nf3 {[%emt 0:00:00]} e6 {[%emt 0:00:00]} 3. Nc3 {[%emt 0:00:09]} Nc6 {[%emt 0:00:00]} 4. d4 {[%emt 0:00:14]} cxd4 {[%emt 0:00:04]} 5. Nxd4 {[%emt 0:00:26]} a6 {[%emt 0:00:10]} 6. Bf4 {[%emt 0:00:55]} Bb4 {[%emt 0:06:02]} 7. Nxc6 {[%emt 0:00:28]} dxc6 {[%emt 0:03:09]} 8. Qxd8+ {[%emt 0:02:11]} Kxd8 {[%emt 0:00:48]} 9. O-O-O+ {[%emt 0:01:33]} Ke8 {[%emt 0:01:33]} 10. Rd3 {[%emt 0:14:21]} Nf6 {[%emt 0:01:16]} 11. f3 Ke7 {[%emt 0:05:46]} 12. Be2 {[%emt 0:09:45]} Bd7 {[%emt 0:04:46]} 13. Rhd1 {[%emt 0:01:47]} Rac8 {[%emt 0:08:18]} 14. Na4 {[%emt 0:11:34]} Ba5 {[%emt 0:02:34]} 15. Bd6+ {[%emt 0:04:28]} Ke8 {[%emt 0:01:05]} 16. Nc5 {[%emt 0:01:48]} Bc7 {[%emt 0:14:26]} 17. Nxb7 {[%emt 0:05:26]} Rb8 {[%emt 0:05:28]} 18. Nc5 {[%emt 0:01:34]} Bxd6 {[%emt 0:00:45]} 19. Rxd6 {[%emt 0:00:38]} Rd8 {[%emt 0:00:21]} 20. Bxa6 {[%emt 0:02:41]} Ke7 {[%emt 0:01:29]} 21. Kb1 {[%emt 0:04:48]} Bc8 {[%emt 0:03:23]} 22. Rxd8 {[%emt 0:03:57]} Rxd8 {[%emt 0:00:20]} 23. Rxd8 {[%emt 0:00:43]} Kxd8 {[%emt 0:00:12]} 24. Bxc8 {[%emt 0:02:23]} Kxc8 {[%emt 0:00:09]} 25. a4 {[%emt 0:00:30]} Kc7 {[%emt 0:00:06]} 26. b4 {[%emt 0:00:19]} Kb6 {[%emt 0:02:24]} 27. c4 {[%emt 0:00:58]} Ne8 {[%emt 0:01:24]} 28. Kc2 {[%emt 0:01:09]} Nd6 {[%emt 0:00:13]} 29. Kc3 {[%emt 0:00:36]} h6 {[%emt 0:01:32]} 30. a5+ {[%emt 0:01:34]} Ka7 {[%emt 0:01:13]} 31. g4 {[%emt 0:03:48]} e5 {[%emt 0:01:04]} 32. Nd7 {[%emt 0:01:02]} f6 {[%emt 0:00:34]} 33. Kd3 {[%emt 0:01:53]} Ka6 {[%emt 0:01:23]} 34. Nc5+ {[%emt 0:00:40]} Ka7 {[%emt 0:00:13]} 35. Kc3 {[%emt 0:02:12]} Kb8 {[%emt 0:01:18]} 36. Na4 {[%emt 0:02:22]} Kb7 {[%emt 0:00:13]} 37. Kb3 {[%emt 0:00:36]} Ka6 {[%emt 0:00:51]} 38. c5 {[%emt 0:01:38]} Nb5 {[%emt 0:00:14]} 39. Kc4 {[%emt 0:01:26]} Nd4 {[%emt 0:00:12]} 40. Nc3 {[%emt 0:00:00]} g6 {[%emt 0:00:00]} 41. Na4 {[%emt 0:01:41]} Nxf3 {[%emt 0:03:33]} 42. Nb6 {[%emt 0:00:30]} Nxh2 {[%emt 0:00:25]} 43. Nc8 {[%emt 0:01:18]} Nf3 {[%emt 0:01:45]} 44. Nd6 {[%emt 0:00:34]} Nd4 {[%emt 0:00:11]} 45. Ne8 {[%emt 0:01:22]} f5 {[%emt 0:01:05]} 46. exf5 {[%emt 0:01:13]} gxf5 {[%emt 0:00:13]} 47. gxf5 {[%emt 0:00:32]} Nxf5 {[%emt 0:00:04]} 48. Nf6 {[%emt 0:02:06]} Ng3 {[%emt 0:00:36]} 49. b5+ {[%emt 0:00:39]} cxb5+ {[%emt 0:00:12]} 50. Kd5 {[%emt 0:02:39]} e4 {[%emt 0:01:22]} 51. c6 {[%emt 0:01:05]} e3 {[%emt 0:00:14]} 52. c7 {[%emt 0:01:10]} Kb7 {[%emt 0:00:13]} 53. a6+ {[%emt 0:00:23]} Kxc7 {[%emt 0:00:10]} 54. Ne8+ {[%emt 0:00:28]} Kb6 {[%emt 0:00:13]} 0-1

[Event "XII Figueira da Foz Open 2018"]
[Site "Figueira da Foz"]
[Date "2018.11.04"]
[Round "9"]
[White "Fernandes, Joao Pedro Murtinho"]
[Black "Fernandes, Ricardo Paulos"]
[Result "1/2-1/2"]
[ECO "B78"]
[WhiteElo "2067"]
[BlackElo "2098"]
[Annotator "NA RC"]
[PlyCount "66"]
[EventDate "2018.10.30"]
[EventType "swiss"]
[EventCountry "POR"]
[SourceTitle "playchess.com"]
[Source "ChessBase"]
[SourceQuality "1"]
[TimeControl "40/5400+30:1800+30"]

1. e4 {[%emt 0:00:00]} c5 {[%emt 0:00:36]} 2. Nf3 {[%emt 0:00:17]} d6 {[%emt 0:00:04]} 3. d4 {[%emt 0:00:19]} cxd4 {[%emt 0:00:05]} 4. Nxd4 {[%emt 0:00:05]} Nf6 {[%emt 0:00:03]} 5. Nc3 {[%emt 0:00:07]} g6 {[%emt 0:00:03]} 6. Be3 {[%emt 0:00:28]} Bg7 {[%emt 0:00:05]} 7. f3 {[%emt 0:00:11]} Nc6 {[%emt 0:00:31]} 8. Qd2 {[%emt 0:00:18]} O-O {[%emt 0:00:07]} 9. Bc4 {[%emt 0:00:12]} Bd7 {[%emt 0:00:06]} 10. O-O-O {[%emt 0:00:22]} Rc8 {[%emt 0:00:02]} 11. Bb3 {[%emt 0:00:12]} Nxd4 {[%emt 0:00:05]} 12. Bxd4 {[%emt 0:00:10]} b5 {[%emt 0:00:04]} 13. Nd5 {[%emt 0:14:31]} Nxd5 {[%emt 0:00:16]} 14. Bxg7 {[%emt 0:00:14]} Kxg7 {[%emt 0:00:05]} 15. Bxd5 {[%emt 0:02:29]} a5 {[%emt 0:23:24]} 16. h4 {[%emt 0:14:26]} h6 {[%emt 0:10:39]} 17. h5 {[%emt 0:08:29]} g5 {[%emt 0:00:42]} 18. a3 {[%emt 0:03:12]} Rc5 {[%emt 0:18:56]} 19. f4 {[%emt 0:10:50]} f6 {[%emt 0:09:35]} 20. fxg5 {[%emt 0:05:02]} hxg5 {[%emt 0:02:30]} 21. Qd3 {[%emt 0:06:57]} e5 {[%emt 0:01:01]} 22. b4 {[%emt 0:03:44]} Rc7 {[%emt 0:05:16]} 23. Kb2 {[%emt 0:01:00]} Qb8 {[%emt 0:18:25]} 24. Rd2 {[%emt 0:05:46]} Qa7 {[%emt 0:02:50]} 25. Qb3 {[%emt 0:05:59]} Rfc8 {[%emt 0:01:25]} 26. h6+ {[%emt 0:00:30]} Kh7 {[%emt 0:00:29]} 27. Bg8+ {[%emt 0:00:39]} Kh8 {[%emt 0:00:46]} 28. Qf7 {[%emt 0:05:07]} Bg4 {[%emt 0:02:36]} 29. Qxf6+ {[%emt 0:00:35]} Kxg8 {[%emt 0:00:03]} 30. Qxg5+ {[%emt 0:00:36]} Kh8 {[%emt 0:00:13]} 31. Qxg4 {[%emt 0:06:32]} Qe3 {[%emt 0:00:06]} 32. Qf3 {[%emt 0:02:25]} Qxd2 {[%emt 0:00:26]} 33. Qf6+ {[%emt 0:00:07]} Kh7 {[%emt 0:00:37]} 1/2-1/2

[Event "XII Figueira da Foz Open 2018"]
[Site "Figueira da Foz"]
[Date "2018.11.04"]
[Round "9"]
[White "Felizes, Paulo"]
[Black "Adams, Philip"]
[Result "0-1"]
[ECO "A46"]
[WhiteElo "1965"]
[BlackElo "1980"]
[Annotator "NA RC"]
[PlyCount "60"]
[EventDate "2018.10.30"]
[EventType "swiss"]
[EventCountry "POR"]
[SourceTitle "playchess.com"]
[Source "ChessBase"]
[SourceQuality "1"]
[TimeControl "40/5400+30:1800+30"]

1. d4 e6 2. Nf3 Nf6 3. Bg5 c5 4. e4 cxd4 5. e5 h6 6. Bh4 g5 7. Bg3 Ne4 8. Qxd4 Nxg3 9. hxg3 Nc6 10. Qe3 g4 11. Nfd2 Qa5 12. Rh5 f5 13. Nc3 Qxe5 14. Nb5 Kf7 15. O-O-O Qxe3 16. fxe3 a6 17. Nc3 d5 18. Na4 b5 19. Nb6 Rb8 20. Nxc8 Rxc8 21. a4 bxa4 22. Bxa6 Rc7 23. Kb1 Bg7 24. e4 fxe4 25. Be2 Rb8 26. b3 Nd4 27. Bxg4 axb3 28. c4 Nc2 29. Rf1+ Ke7 30. Nxb3 Ne3 0-1

[Event "XII Figueira da Foz Open 2018"]
[Site "Figueira da Foz"]
[Date "2018.11.04"]
[Round "9"]
[White "Lopez de Turiso, Jose Angel"]
[Black "Puglia, Francesco"]
[Result "1/2-1/2"]
[ECO "B22"]
[WhiteElo "1933"]
[BlackElo "1803"]
[Annotator "NA RC"]
[PlyCount "89"]
[EventDate "2018.10.30"]
[EventType "swiss"]
[EventCountry "POR"]
[SourceTitle "playchess.com"]
[Source "ChessBase"]
[SourceQuality "1"]
[TimeControl "40/5400+30:1800+30"]

1. e4 {[%emt 0:00:00]} c5 {[%emt 0:00:00]} 2. c3 {[%emt 0:00:00]} Nf6 {[%emt 0:00:13]} 3. e5 {[%emt 0:00:09]} Nd5 {[%emt 0:00:06]} 4. d4 {[%emt 0:00:14]} cxd4 {[%emt 0:00:20]} 5. Nf3 {[%emt 0:00:08]} d6 {[%emt 0:03:53]} 6. Bc4 {[%emt 0:14:06]} dxe5 {[%emt 0:14:03]} 7. Nxe5 {[%emt 0:03:24]} e6 {[%emt 0:00:52]} 8. Qxd4 {[%emt 0:05:12]} Be7 {[%emt 0:10:14]} 9. Nd2 {[%emt 0:09:46]} O-O {[%emt 0:02:27]} 10. O-O {[%emt 0:06:35]} Nc6 {[%emt 0:00:53]} 11. Nxc6 {[%emt 0:04:59]} bxc6 {[%emt 0:00:02]} 12. Nf3 {[%emt 0:01:17]} Qb6 {[%emt 0:12:08]} 13. Qe4 {[%emt 0:03:31]} Bb7 {[%emt 0:10:14]} 14. Bg5 {[%emt 0:08:59]} c5 {[%emt 0:05:06]} 15. Qh4 {[%emt 0:08:38]} Bxg5 {[%emt 0:02:31]} 16. Nxg5 {[%emt 0:01:11]} Nf6 {[%emt 0:00:29]} 17. Rfe1 {[%emt 0:02:56]} Qxb2 {[%emt 0:13:42]} 18. Rab1 {[%emt 0:16:24]} Qxc3 {[%emt 0:03:42]} 19. Rec1 {[%emt 0:00:12]} Qd2 {[%emt 0:01:53]} 20. Rd1 {[%emt 0:01:59]} Qa5 {[%emt 0:07:57]} 21. Rxb7 {[%emt 0:01:01]} Rae8 {[%emt 0:00:19]} 22. h3 {[%emt 0:03:55]} Qa4 {[%emt 0:02:37]} 23. Rdd7 {[%emt 0:03:12]} h6 {[%emt 0:00:03]} 24. Rxf7 {[%emt 0:01:13]} Qd1+ {[%emt 0:00:41]} 25. Kh2 {[%emt 0:00:26]} Qd6+ {[%emt 0:00:27]} 26. g3 {[%emt 0:00:45]} Rxf7 {[%emt 0:01:31]} 27. Nxf7 {[%emt 0:00:26]} Qc6 {[%emt 0:00:34]} 28. Rb1 {[%emt 0:02:12]} Qf3 {[%emt 0:03:31]} 29. Rf1 {[%emt 0:01:00]} Kxf7 {[%emt 0:00:20]} 30. Bb3 Nd5 {[%emt 0:00:58]} 31. Qc4 {[%emt 0:00:56]} Qc3 {[%emt 0:01:35]} 32. Qe4 {[%emt 0:00:24]} Qd4 {[%emt 0:00:28]} 33. Bxd5 {[%emt 0:00:06]} exd5 {[%emt 0:00:20]} 34. Qf5+ Kg8 {[%emt 0:00:16]} 35. h4 {[%emt 0:01:12]} Rf8 {[%emt 0:00:11]} 36. Qe6+ {[%emt 0:00:12]} Kh8 {[%emt 0:00:02]} 37. Kg2 {[%emt 0:00:07]} Qe4+ {[%emt 0:00:04]} 38. Qxe4 {[%emt 0:00:05]} dxe4 {[%emt 0:00:02]} 39. Rc1 {[%emt 0:00:52]} Rf5 {[%emt 0:00:33]} 40. Rc4 {[%emt 0:00:00]} Re5 {[%emt 0:00:00]} 41. Ra4 {[%emt 0:01:49]} Re7 {[%emt 0:00:18]} 42. Rc4 {[%emt 0:00:11]} e3 {[%emt 0:07:30]} 43. fxe3 {[%emt 0:00:40]} Rxe3 {[%emt 0:00:08]} 44. Ra4 {[%emt 0:00:57]} Re7 {[%emt 0:01:30]} 45. Kf3 {[%emt 0:00:44]} 1/2-1/2

[Event "XII Figueira da Foz Open 2018"]
[Site "Figueira da Foz"]
[Date "2018.11.04"]
[Round "9"]
[White "Louzao Brea, Jose Luis"]
[Black "Silva, Pedro Gil Ferreira "]
[Result "0-1"]
[ECO "B12"]
[WhiteElo "1835"]
[BlackElo "1837"]
[Annotator "NA RC"]
[PlyCount "72"]
[EventDate "2018.10.30"]
[EventType "swiss"]
[EventCountry "POR"]
[SourceTitle "playchess.com"]
[Source "ChessBase"]
[SourceQuality "1"]
[TimeControl "40/5400+30:1800+30"]

1. e4 {[%emt 0:07:43]} c6 {[%emt 0:00:00]} 2. d4 {[%emt 0:01:09]} d5 {[%emt 0:00:00]} 3. e5 {[%emt 0:00:51]} c5 {[%emt 0:00:00]} 4. c3 {[%emt 0:00:21]} Nc6 {[%emt 0:00:13]} 5. f4 {[%emt 0:02:25]} cxd4 {[%emt 0:03:57]} 6. cxd4 {[%emt 0:00:12]} Nh6 {[%emt 0:04:37]} 7. Nf3 {[%emt 0:02:08]} Bg4 {[%emt 0:01:04]} 8. Be2 {[%emt 0:07:44]} Bxf3 {[%emt 0:03:05]} 9. gxf3 {[%emt 0:04:21]} e6 {[%emt 0:03:15]} 10. Bb5 {[%emt 0:03:05]} Qb6 {[%emt 0:01:23]} 11. Nc3 {[%emt 0:02:55]} Nf5 {[%emt 0:02:51]} 12. Bxc6+ {[%emt 0:01:16]} bxc6 {[%emt 0:00:13]} 13. Ne2 {[%emt 0:00:19]} Be7 {[%emt 0:04:45]} 14. O-O {[%emt 0:09:11]} O-O {[%emt 0:04:29]} 15. Qd3 {[%emt 0:01:44]} Rfc8 {[%emt 0:03:20]} 16. b3 {[%emt 0:01:13]} c5 {[%emt 0:02:00]} 17. dxc5 {[%emt 0:01:11]} Qxc5+ {[%emt 0:03:12]} 18. Kh1 {[%emt 0:07:10]} Qc2 {[%emt 0:11:01]} 19. Rd1 {[%emt 0:01:07]} Qxd3 {[%emt 0:00:24]} 20. Rxd3 {[%emt 0:00:03]} Rc2 {[%emt 0:00:37]} 21. Ng3 {[%emt 0:04:16]} Rac8 {[%emt 0:01:32]} 22. Bd2 {[%emt 0:05:50]} Nh4 {[%emt 0:05:42]} 23. Nf1 {[%emt 0:05:49]} Ng6 {[%emt 0:12:04]} 24. b4 {[%emt 0:04:07]} R2c4 {[%emt 0:11:00]} 25. Ra3 {[%emt 0:11:05]} Bxb4 {[%emt 0:01:12]} 26. Bxb4 {[%emt 0:04:49]} Rxb4 {[%emt 0:00:20]} 27. f5 {[%emt 0:01:33]} Nxe5 {[%emt 0:01:04]} 28. fxe6 {[%emt 0:00:59]} fxe6 {[%emt 0:00:05]} 29. Re1 {[%emt 0:01:19]} Ng6 {[%emt 0:01:57]} 30. Rxa7 {[%emt 0:01:40]} d4 {[%emt 0:02:00]} 31. Kg2 {[%emt 0:03:45]} d3 {[%emt 0:00:52]} 32. Rd7 {[%emt 0:01:40]} Rb2+ {[%emt 0:01:10]} 33. Kg3 {[%emt 0:00:02]} Rcc2 {[%emt 0:03:29]} 34. f4 {[%emt 0:03:15]} Rg2+ {[%emt 0:00:18]} 35. Kf3 {[%emt 0:00:38]} Nh4+ {[%emt 0:00:32]} 36. Ke3 {[%emt 0:00:33]} Rbe2+ {[%emt 0:00:18]} 0-1

[Event "XII Figueira da Foz Open 2018"]
[Site "Figueira da Foz"]
[Date "2018.11.04"]
[Round "9"]
[White "Marques, Joao Paulo C Veloso"]
[Black "Pipiras, Filipa Fortuna"]
[Result "0-1"]
[ECO "A20"]
[WhiteElo "1807"]
[BlackElo "1853"]
[Annotator "NA RC"]
[PlyCount "72"]
[EventDate "2018.10.30"]
[EventType "swiss"]
[EventCountry "POR"]
[SourceTitle "playchess.com"]
[Source "ChessBase"]
[SourceQuality "1"]
[TimeControl "40/5400+30:1800+30"]

1. c4 {[%emt 0:00:00]} e5 {[%emt 0:00:00]} 2. g3 {[%emt 0:00:00]} Nf6 {[%emt 0:00:00]} 3. Bg2 {[%emt 0:00:00]} Nc6 {[%emt 0:00:18]} 4. Nc3 {[%emt 0:00:06]} Bc5 {[%emt 0:00:16]} 5. Nf3 {[%emt 0:00:49]} O-O {[%emt 0:00:24]} 6. O-O {[%emt 0:00:04]} a6 {[%emt 0:00:30]} 7. d3 {[%emt 0:00:12]} h6 {[%emt 0:00:20]} 8. a3 {[%emt 0:00:22]} d6 {[%emt 0:00:41]} 9. Bd2 {[%emt 0:00:53]} Ne7 {[%emt 0:02:23]} 10. b4 {[%emt 0:00:25]} Ba7 {[%emt 0:01:58]} 11. a4 {[%emt 0:02:00]} Be6 {[%emt 0:03:08]} 12. b5 {[%emt 0:01:02]} axb5 {[%emt 0:02:25]} 13. axb5 {[%emt 0:00:50]} Qd7 {[%emt 0:00:24]} 14. Ra4 {[%emt 0:03:01]} Bb6 {[%emt 0:07:35]} 15. Qa1 {[%emt 0:01:07]} Rad8 {[%emt 0:02:42]} 16. Qb2 {[%emt 0:03:01]} Nh7 {[%emt 0:02:37]} 17. e3 {[%emt 0:12:48]} f5 {[%emt 0:02:57]} 18. Ne1 {[%emt 0:03:26]} Rb8 {[%emt 0:07:53]} 19. Nc2 {[%emt 0:03:32]} g5 {[%emt 0:02:52]} 20. Nd5 {[%emt 0:05:24]} Nxd5 {[%emt 0:02:49]} 21. cxd5 {[%emt 0:00:12]} Bf7 {[%emt 0:00:33]} 22. d4 {[%emt 0:01:50]} e4 {[%emt 0:03:11]} 23. Qb3 {[%emt 0:05:53]} Nf6 {[%emt 0:00:33]} 24. Rb1 {[%emt 0:07:15]} Bxd5 {[%emt 0:05:20]} 25. Qa3 {[%emt 0:01:21]} Kg7 {[%emt 0:07:20]} 26. Bf1 {[%emt 0:00:08]} c6 {[%emt 0:03:01]} 27. Nb4 {[%emt 0:14:00]} Bf7 {[%emt 0:03:29]} 28. bxc6 {[%emt 0:01:34]} bxc6 {[%emt 0:00:21]} 29. Na6 {[%emt 0:01:08]} Rb7 {[%emt 0:00:27]} 30. Rab4 {[%emt 0:02:20]} Nd5 {[%emt 0:00:14]} 31. R4b2 {[%emt 0:01:17]} Ra8 {[%emt 0:11:55]} 32. Ba5 {[%emt 0:05:00]} Qd8 {[%emt 0:01:50]} 33. Rxb6 {[%emt 0:08:39]} Nxb6 {[%emt 0:02:31]} 34. Qb2 {[%emt 0:04:11]} Nc4 {[%emt 0:03:37]} 35. Qxb7 {[%emt 0:00:24]} Nxa5 {[%emt 0:00:08]} 36. Ra1 {[%emt 0:05:19]} Nxb7 {[%emt 0:00:11]} 0-1

[Event "XII Figueira da Foz Open 2018"]
[Site "Figueira da Foz"]
[Date "2018.11.04"]
[Round "9"]
[White "Asvestopoulou, Evdokia"]
[Black "Soares, Sara Joana De Moura"]
[Result "0-1"]
[ECO "D56"]
[WhiteElo "1720"]
[BlackElo "1481"]
[Annotator "NA RC"]
[PlyCount "54"]
[EventDate "2018.10.30"]
[EventType "swiss"]
[EventCountry "POR"]
[SourceTitle "playchess.com"]
[Source "ChessBase"]
[SourceQuality "1"]
[TimeControl "40/5400+30:1800+30"]

1. d4 d5 2. c4 e6 3. Nc3 Nf6 4. Bg5 Be7 5. e3 O-O 6. Nf3 h6 7. Bh4 Ne4 8. Bxe7 Qxe7 9. Nxe4 dxe4 10. Nd2 f5 11. Be2 Rd8 12. O-O c6 13. Qc2 Nd7 14. f3 exf3 15. Nxf3 Nf6 16. Rad1 b6 17. Ne5 Bb7 18. Bf3 c5 19. Nc6 Bxc6 20. Bxc6 Rac8 21. d5 Qc7 22. h3 exd5 23. cxd5 g6 24. Qc3 Ne4 25. Qc4 Kh7 26. Qa4 Rd6 27. g4 Rxc6 0-1

[Event "XII Figueira da Foz Open 2018"]
[Site "Figueira da Foz"]
[Date "2018.11.04"]
[Round "9"]
[White "Moes Joaquim, Carlos"]
[Black "Bouxo, Luis Antonio Maximi"]
[Result "1-0"]
[ECO "D37"]
[WhiteElo "1415"]
[BlackElo "1585"]
[Annotator "NA RC"]
[PlyCount "69"]
[EventDate "2018.10.30"]
[EventType "swiss"]
[EventCountry "POR"]
[SourceTitle "playchess.com"]
[Source "ChessBase"]
[SourceQuality "1"]
[TimeControl "40/5400+30:1800+30"]

1. d4 {[%emt 0:07:57]} d5 {[%emt 0:00:06]} 2. c4 {[%emt 0:00:10]} e6 {[%emt 0:00:06]} 3. Nf3 {[%emt 0:00:49]} Nf6 {[%emt 0:00:11]} 4. Nc3 {[%emt 0:01:37]} Be7 {[%emt 0:00:21]} 5. e3 {[%emt 0:00:53]} O-O {[%emt 0:00:06]} 6. Bd3 {[%emt 0:00:07]} c6 {[%emt 0:01:56]} 7. O-O {[%emt 0:00:30]} Re8 {[%emt 0:01:01]} 8. Ne5 {[%emt 0:00:26]} Nbd7 {[%emt 0:00:27]} 9. f4 {[%emt 0:00:20]} dxc4 {[%emt 0:01:39]} 10. Bxc4 {[%emt 0:01:45]} Nd5 {[%emt 0:01:22]} 11. Qh5 {[%emt 0:06:34]} Nxe5 {[%emt 0:04:39]} 12. fxe5 {[%emt 0:12:04]} g6 {[%emt 0:02:08]} 13. Qf3 {[%emt 0:02:26]} Rf8 {[%emt 0:05:29]} 14. e4 {[%emt 0:00:38]} Nxc3 {[%emt 0:01:42]} 15. bxc3 {[%emt 0:00:16]} Kg7 {[%emt 0:05:09]} 16. Qh3 {[%emt 0:03:12]} h5 {[%emt 0:03:21]} 17. Qe3 {[%emt 0:01:24]} Rh8 {[%emt 0:02:15]} 18. a4 {[%emt 0:01:40]} Rh7 {[%emt 0:11:48]} 19. Ba3 {[%emt 0:06:12]} Bxa3 {[%emt 0:00:50]} 20. Rxa3 {[%emt 0:00:25]} Qe7 {[%emt 0:00:31]} 21. Ra2 {[%emt 0:00:12]} Bd7 {[%emt 0:02:30]} 22. Raf2 {[%emt 0:02:24]} Kg8 {[%emt 0:01:23]} 23. Rf6 {[%emt 0:00:21]} a6 {[%emt 0:06:34]} 24. Be2 {[%emt 0:03:49]} Rf8 {[%emt 0:06:53]} 25. Qg5 {[%emt 0:00:28]} Rg7 {[%emt 0:01:07]} 26. R1f3 {[%emt 0:11:46]} Qa3 {[%emt 0:00:47]} 27. h3 {[%emt 0:00:13]} Qa1+ {[%emt 0:01:18]} 28. Kh2 {[%emt 0:00:18]} Qe1 {[%emt 0:00:53]} 29. Qe3 {[%emt 0:08:09]} Qa1 {[%emt 0:04:27]} 30. Rg3 {[%emt 0:00:34]} Rh7 {[%emt 0:05:12]} 31. h4 {[%emt 0:02:26]} Qxa4 {[%emt 0:00:51]} 32. Qf4 {[%emt 0:01:22]} Qc2 {[%emt 0:02:02]} 33. Bxh5 Rxh5 34. Rgxg6+ {[%emt 0:09:49]} Kh8 {[%emt 0:10:15]} 35. Rh6+ {[%emt 0:01:02] Kh7 [%clk 0:15:52]} 1-0